{"text_format":"1","workbook":"xlsx","n_sheets":17,"sheets":["説明","入力シート","計算結果","花粉花蜜残留試験結果","精緻化計算結果","野生ハナバチ類評価結果まとめ","精緻化後の評価結果","蜂群試験を実施する適用","Tier1スクリーニングをクリアする適用","使用制限する適用","ドシエ様式整理用1","ドシエ様式整理用2","蜂個体を用いた影響評価（推計スクリーニング段階）","蜂個体を用いた影響評価（花粉花蜜残留試験実測値による精緻化）","基本パラメータ","更新履歴","BeeRex"],"not_rendered":{"charts":0,"images":7,"macros":1,"external_links":0,"defined_names":4,"comments":1,"pivot_tables":0},"unopened":[],"bounds":{"document_bytes":16777216,"sheet_cells":100000,"rows_first":2000,"rows_last":500,"rows_between":2000,"halvings":0,"cell_chars":16384,"cell_head_chars":4096},"cells_cut":0,"cells_raw":0,"read":"whole","date_system":"1900"}

{"sheet":"説明","index":0,"n_rows":2,"n_cols":2,"rows_kept":2,"cut":false,"hidden":false,"merged":[]}
[]
[null,"*　入力シートについて、列の追加はしないでください。（行の追加は可能です。）"]

{"sheet":"入力シート","index":1,"n_rows":7,"n_cols":20,"rows_kept":7,"cut":false,"hidden":false,"merged":[[1,3,1,5],[0,3,0,6],[5,9,5,13],[1,10,1,11]]}
[{"$f":"更新履歴!J1","v":"Ver.1.0.1"},null,null,"有効成分の毒性値"]
[null,null,null,"成虫",null,null,"幼虫",null,"オクタノール水分配係数（LogPow）※１","土壌吸着係数（Koc）\n※２","※1：LogPow≦5\n※2：Kocは中央値を入力"]
[null,null,null,"急性接触\n毒性値（LD50）\n（µg a.i./bee）","急性経口\n毒性値（LD50）\n（µg a.i./bee）","反復経口\n毒性値（LDD50）\n(µg a.i./bee/day）","\n経口毒性値\n（LD50）\n(µg a.i./bee)"]
[null,null,null,null,null,null,null,null,{"$f":"BeeRex!D7","v":" "}]
[]
[null,null,null,null,null,null,null,null,null,"投下量（該当する箇所に入力。その他は空欄）"]
["登録番号","農薬の種類","農薬の名称","一般名\n（該当する有効成分名を記載）","剤型","有効成分含有率（%）","作物名","適用病害虫","使用方法","最小希釈倍数（倍）","最大散布液量（L/10a)","最大薬量（mL/10a）","最小希釈水量（L/10a）","最大投下量（g/10a）\n粒剤等希釈しないもの","散布方法\n（1～4のうち、合致するものを選択）","適用作物の花蜜の有無\n（あり→○、なし→×）","開花前収穫\n（する→○、しない→×）","施設内のみ\n（該当→○、該当しない→×）","ミツバチが好まない作物\n（該当→○、該当しない→×）","普及率\n（5%or10%を選択）"]

{"sheet":"計算結果","index":2,"n_rows":4,"n_cols":37,"rows_kept":4,"cut":false,"hidden":false,"merged":[[0,29,1,31],[0,32,1,35],[0,18,1,26],[0,27,1,27]]}
[null,null,null,null,null,null,null,null,null,null,null,null,null,null,null,null,null,null,"セイヨウミツバチの暴露量と暴露量/毒性指標",null,null,null,null,null,null,null,null,"セイヨウミツバチ評価時の措置",null,"野生ハナバチ類暴露量\n（セイヨウミツバチ暴露量×普及率%）",null,null,"野生ハナバチ類評価案"]
[]
["登録番号","農薬の種類","農薬の名称","一般名\n（該当する有効成分名を記載）","剤型","有効成分含有率（%）","作物名","適用病害虫","使用方法","暴露シナリオ","最小希釈倍数（倍）\n又は\n最大薬量（mL/10a）","最大散布液量（L/10a）\n又は\n最小希釈液量（L/10a）\n又は最大使用量（g/10a）","１０a当たり製剤投下量（g/10a）","ha当たりa.i.投下量（kg a.i./ha)","散布時の濃度（%）","接触リスク評価","経口リスク評価","推定\n花粉・花蜜残留濃度（µg/g）","成虫\n接触暴露量\n（µg/bee）","成虫\n推定経口暴露量\n（µg/bee）","幼虫\n推定\n経口暴露量\n（µg/bee）","成虫\n接触\n暴露量/毒性指標","成虫\n経口\n暴露量/毒性指標","成虫\n経口反復\n暴露量/毒性指標","幼虫\n経口\n暴露量/毒性指標","成虫反復試験の要否","精緻化\nまたは\n蜂群試験の\n要否","実施する措置\n※（花粉花蜜残留試験 \nor\n 蜂群試験 \nor\n 使 用 制 限）","普及率\n（%）","野生ハナバチ類成虫\n接触暴露量\n（µg/bee）","野生ハナバチ類成虫\n推定経口暴露量\n（µg/bee）","野生ハナバチ類幼虫\n推定\n経口暴露量\n（µg/bee）","成虫\n接触基準値と暴露量の比較","成虫\n単回経口基準値と暴露量の比較","成虫\n反復経口基準値と暴露量の比較","幼虫\n経口基準値と暴露量の比較"]
[{"$f":"入力シート!A8","v":0},{"$f":"入力シート!B8","v":0},{"$f":"入力シート!C8","v":0},{"$f":"入力シート!D8","v":0},{"$f":"入力シート!E8","v":0},{"$f":"入力シート!F8","v":0},{"$f":"入力シート!G8","v":0},{"$f":"入力シート!H8","v":0},{"$f":"入力シート!I8","v":0},{"$f":"入力シート!O8","v":0},{"$f":"IF(入力シート!$J8<>\"\",入力シート!$J8,IF(入力シート!$L8<>\"\",入力シート!$L8,\"‐\"))","v":"‐"},{"$f":"IF(入力シート!$K8<>\"\",入力シート!$K8,IF(入力シート!$M8<>\"\",入力シート!$M8,入力シート!$N8))","v":0},{"$f":"IF(入力シート!K8<>\"\",入力シート!K8/入力シート!J8*1000,IF(入力シート!L8<>\"\",入力シート!L8,入力シート!N8))","v":0},{"$f":"M4*入力シート!F8/100","v":0},{"$f":"IF(入力シート!J8<>\"\",入力シート!F8/入力シート!J8,IF(入力シート!L8<>\"\",(入力シート!F8/((入力シート!M8 *1000+入力シート!L8)/入力シート!L8)),入力シート!F8))","v":0},{"$f":"IF(OR(入力シート!O8<>\"1茎葉散布\",入力シート!Q8=\"○\",入力シート!R8=\"○\",入力シート!S8=\"○\"),\"不要\",\"必要\")","v":"不要"},{"$f":"IF(OR(入力シート!O8=\"4配置・誘引\",入力シート!Q8=\"○\",入力シート!R8=\"○\",入力シート!S8=\"○\"),\"不要\",\"必要\")","v":"必要"},{"$f":"IF(入力シート!O8=\"1茎葉散布\",基本パラメータ!$B$6*N4,IF(入力シート!O8=\"2土壌処理\",BeeRex!$C$17*N4,IF(入力シート!O8=\"3種子処理\",1,\"－\")))","v":"－"},{"$f":"IF(P4=\"必要\",基本パラメータ!$B$12*O4,\"－\")","v":"－"},{"$f":"IF(Q4=\"必要\",IF(入力シート!P8=\"○\",R4*(基本パラメータ!$B$2+基本パラメータ!$B$3),R4*基本パラメータ!$B$2),\"－\")","v":{"$error":"#VALUE!"}},{"$f":"IF(Q4=\"必要\",IF(入力シート!P8=\"○\",R4*(基本パラメータ!$C$2+基本パラメータ!$C$3),R4*基本パラメータ!$C$2),\"－\")","v":{"$error":"#VALUE!"}},{"$f":"IF(P4=\"必要\",S4/入力シート!$D$4,\"－\")","v":"－"},{"$f":"IF(Q4=\"必要\",T4/入力シート!$E$4,\"－\")","v":{"$error":"#VALUE!"}},{"$f":"IF(Q4=\"必要\",T4/入力シート!$F$4,\"－\")","v":{"$error":"#VALUE!"}},{"$f":"IF(Q4=\"必要\",U4/入力シート!$G$4,\"－\")","v":{"$error":"#VALUE!"}},{"$f":"IF(W4=\"－\",\"不要\",IF(W4>0.04,\"必要\",\"不要\"))","v":{"$error":"#VALUE!"}},{"$f":"IF(AND(W4=\"－\",X4=\"－\",Y4=\"－\"),\"\",IF(OR(W4>0.4,X4>0.4,Y4>0.4),\"要\",\"不要\"))","v":{"$error":"#VALUE!"}},null,{"$f":"入力シート!T8","v":0},{"$f":"IFERROR(S4*AC4,\"－\")","v":"－"},{"$f":"IFERROR(T4*AC4,\"－\")","v":"－"},{"$f":"IFERROR(U4*AC4,\"－\")","v":"－"},{"$f":"IF(AD4=\"－\",\"評価対象外\",IF(AD4>野生ハナバチ類評価結果まとめ!$H$6,\"基準値案を超える。\",\"基準値案を超えない。\"))","v":"評価対象外"},{"$f":"IFERROR(IF(OR(入力シート!$E$4=\"－\",入力シート!$E$4=\"\"),\"評価対象外\",IF(AE4=\"－\",\"評価対象外\",IF(AND(入力シート!$E$4<>\"\",AE4>(野生ハナバチ類評価結果まとめ!$H$7)),\"基準値案を超える。\",\"基準値案を超えない。\"))),\"エラー\")","v":"評価対象外"},{"$f":"IFERROR(IF(OR(入力シート!$F$4=\"－\",入力シート!$F$4=\"\"),\"評価対象外\",IF(AE4=\"－\",\"評価対象外\",IF(AND(入力シート!$F$4<>\"\",AE4>(野生ハナバチ類評価結果まとめ!$H$8)),\"基準値案を超える。\",\"基準値案を超えない。\"))),\"エラー\")","v":"評価対象外"},{"$f":"IFERROR(IF(OR(入力シート!$G$4=\"－\",入力シート!$G$4=\"\"),\"評価対象外\",IF(AF4=\"－\",\"評価対象外\",IF(AND(入力シート!$G$4<>\"\",AF4>(野生ハナバチ類評価結果まとめ!$H$9)),\"基準値案を超える。\",\"基準値案を超えない。\"))),\"エラー\")","v":"評価対象外"},1]

{"sheet":"花粉花蜜残留試験結果","index":3,"n_rows":156,"n_cols":10,"rows_kept":156,"cut":false,"hidden":false,"merged":[[1,0,2,0],[1,1,2,1],[1,6,1,7],[1,8,1,9],[0,6,0,9],[0,2,0,4],[1,2,2,2],[1,4,2,4],[1,5,2,5],[1,3,2,3]]}
[null,null,"※オレンジ色のセルに必要事項を入力後、右の\"精緻化\"ボタンを押してください。",null,null,null,"残留量（μg/g）"]
["適用作物名＋使用方法","試験作物名＋試験番号","適用作物名","使用方法","試験作物名","試験番号等","最大値",null,"平均値"]
[null,null,null,null,null,null,"花粉","花蜜","花粉","花蜜"]
[{"$f":"CONCATENATE(C4,D4)","v":""},{"$f":"CONCATENATE(E4,F4)","v":""}]
[{"$f":"CONCATENATE(C5,D5)","v":""},{"$f":"CONCATENATE(E5,F5)","v":""}]
["",""]
["",""]
["",""]
["",""]
["",""]
["",""]
["",""]
["",""]
["",""]
["",""]
["",""]
["",""]
["",""]
["",""]
["",""]
["",""]
["",""]
["",""]
["",""]
["",""]
["",""]
["",""]
["",""]
["",""]
["",""]
["",""]
["",""]
["",""]
["",""]
["",""]
["",""]
["",""]
["",""]
["",""]
["",""]
["",""]
["",""]
["",""]
["",""]
["",""]
["",""]
["",""]
["",""]
["",""]
["",""]
["",""]
["",""]
["",""]
["",""]
["",""]
["",""]
["",""]
["",""]
["",""]
["",""]
["",""]
["",""]
["",""]
["",""]
["",""]
["",""]
["",""]
["",""]
[{"$f":"CONCATENATE(C69,D69)","v":""},{"$f":"CONCATENATE(E69,F69)","v":""}]
["",""]
["",""]
["",""]
["",""]
["",""]
["",""]
["",""]
["",""]
["",""]
["",""]
["",""]
["",""]
["",""]
["",""]
["",""]
["",""]
["",""]
["",""]
["",""]
["",""]
["",""]
["",""]
["",""]
["",""]
["",""]
["",""]
["",""]
["",""]
["",""]
["",""]
["",""]
["",""]
["",""]
["",""]
["",""]
["",""]
["",""]
["",""]
["",""]
["",""]
["",""]
["",""]
["",""]
["",""]
["",""]
["",""]
["",""]
["",""]
["",""]
["",""]
["",""]
["",""]
["",""]
["",""]
["",""]
["",""]
["",""]
["",""]
["",""]
["",""]
["",""]
["",""]
["",""]
[{"$f":"CONCATENATE(C133,D133)","v":""},{"$f":"CONCATENATE(E133,F133)","v":""}]
["",""]
["",""]
["",""]
["",""]
["",""]
["",""]
["",""]
["",""]
["",""]
["",""]
["",""]
["",""]
["",""]
["",""]
["",""]
["",""]
["",""]
["",""]
["",""]
["",""]
["",""]
["",""]
["",""]

{"sheet":"精緻化計算結果","index":4,"n_rows":3,"n_cols":48,"rows_kept":3,"cut":false,"hidden":false,"merged":[[0,44,1,47],[0,41,1,43],[0,12,1,26],[1,29,1,30],[1,31,1,32],[0,33,1,38],[0,29,0,32]]}
[null,null,null,null,null,null,null,null,null,null,null,null,"セイヨウミツバチTier1スクリーニング結果",null,null,null,null,null,null,null,null,null,null,null,null,null,null,null,null,"実測花粉・花蜜残留濃度",null,null,null,"セイヨウミツバチ精緻化結果",null,null,null,null,null,null,null,"野生ハナバチ類暴露量\n精緻化後",null,null,"野生ハナバチ類評価案"]
[null,null,null,null,null,null,null,null,null,null,null,null,null,null,null,null,null,null,null,null,null,null,null,null,null,null,null,null,null,"最大値\n（µg/g）",null,"平均値\n（µg/g）"]
["登録番号","農薬の種類","農薬の名称","一般名\n（該当する有効成分名を記載）","剤型","有効成分含有率（%）","作物名","適用病害虫","使用方法","暴露シナリオ","最小希釈倍数（倍）\n又は\n最大薬量（mL/10a）","最大散布液量（L/10a）\n又は\n最小希釈液量（L/10a）\n又は最大使用量（g/10a）","１０a当たり製剤投下量（g/10a）","ha当たりa.i.投下量（kg a.i./ha)","散布時の濃度（%）","接触リスク評価","経口リスク評価","推定\n花粉・花蜜残留濃度（µg/g）","成虫\n接触暴露量\n（µg/bee）","成虫\n推定経口暴露量\n（µg/bee）","幼虫\n推定\n経口暴露量\n（µg/bee）","成虫\n接触\n暴露量/毒性指標","成虫\n経口\n暴露量/毒性指標","成虫\n経口反復\n暴露量/毒性指標","幼虫\n経口\n暴露量/毒性指標","成虫反復試験の要否","精緻化の要否","試験作物名","試験番号","花粉","花蜜","花粉","花蜜","成虫\n精緻化\n経口暴露量\n（µg/bee）","成虫\n精緻化\n経口反復\n暴露量\n（µg/bee）","幼虫\n精緻化\n経口暴露量\n（µg/bee）","成虫\n経口\n暴露量/毒性指標","成虫\n経口反復\n暴露量/毒性指標","幼虫\n経口\n暴露量/毒性指標","普及率\n5%or10%","成虫\n接触暴露量\n（µg/bee）","成虫\n精緻化\n経口暴露量\n（µg/bee）","成虫\n精緻化\n経口反復\n暴露量\n（µg/bee）","幼虫\n精緻化\n経口暴露量\n（µg/bee）","成虫\n接触基準値と暴露量の比較","成虫\n単回経口基準値と暴露量の比較","成虫\n反復経口基準値と暴露量の比較","幼虫\n経口基準値と暴露量の比較"]

{"sheet":"野生ハナバチ類評価結果まとめ","index":5,"n_rows":21,"n_cols":11,"rows_kept":21,"cut":false,"hidden":false,"merged":[[0,1,0,2],[16,6,16,7],[2,1,3,3],[2,6,3,10],[4,6,4,7],[14,6,15,10],[14,1,15,4],[12,1,12,4],[12,6,12,10]]}
[null,"スクリーニング評価"]
[]
[null,"野生ﾊﾅﾊﾞﾁ類最大予測暴露量",null,null,null,null,"Tier1スクリーニング_野生ハナバチ類評価案"]
[]
[null,"成虫接触暴露量\n最大値（µg /bee）","成虫経口暴露量\n最大値（µg /bee）","幼虫経口暴露量\n最大値（µg /bee）",null,null,"基準値案（µg /bee）\n（ｾｲﾖｳﾐﾂﾊﾞﾁ毒性指標×不確実係数1/10×LD10変換係数0.4）",null,null,"野生ﾊﾅﾊﾞﾁ類\n予測暴露量\n（µg/bee）","評価案"]
[null,{"$f":"IF(MAX(計算結果!AD4:INDIRECT(\"計算結果！AD\"&COUNTA(計算結果!AD:AD)+3))=0,\"－\",MAX(計算結果!AD4:INDIRECT(\"計算結果！AD\"&COUNTA(計算結果!AD:AD)+3)))","v":"－"},{"$f":"IF(MAX(計算結果!AE4:INDIRECT(\"計算結果！AE\"&COUNTA(計算結果!AE:AE)+3))=0,\"－\",MAX(計算結果!AE4:INDIRECT(\"計算結果！AE\"&COUNTA(計算結果!AE:AE)+3)))","v":"－"},{"$f":"IF(MAX(計算結果!AF4:INDIRECT(\"計算結果！AF\"&COUNTA(計算結果!AF:AF)+3))=0,\"－\",MAX(計算結果!AF4:INDIRECT(\"計算結果！AF\"&COUNTA(計算結果!AF:AF)+3)))","v":"－"},null,null,"成虫単回接触",{"$f":"IFERROR(ROUNDDOWN((入力シート!$D$4*0.1*0.4),-INT(LOG10(入力シート!$D$4*0.1*0.4))+1),\"対象外\")","v":"対象外"},{"$f":"IF(B6=\"－\",\"－\",IF(H6<J6,\"<\",IF(H6=J6,\"=\",\">\")))","v":"－"},{"$f":"B6","v":"－"},{"$f":"IF(B6=\"－\",\"評価対象外\",IF(OR(I6=\">\"),\"予測暴露量が基準値案を超えない。\",\"要精緻化or蜂群試験orリスク管理措置\"))","v":"評価対象外"}]
[null,null,null,null,null,null,"成虫単回経口",{"$f":"IFERROR(ROUNDDOWN((入力シート!$E$4*0.1*0.4),-INT(LOG10(入力シート!$E$4*0.1*0.4))+1),\"対象外\")","v":"対象外"},{"$f":"IF(C6=\"－\",\"－\",IF(H7<J7,\"<\",IF(H7=J7,\"=\",\">\")))","v":"－"},{"$f":"C6","v":"－"},{"$f":"IF(C6=\"－\",\"評価対象外\",IF(OR(I7=\">\"),\"予測暴露量が基準値案を超えない。\",\"要精緻化or蜂群試験orリスク管理措置\"))","v":"評価対象外"}]
[null,null,null,null,null,null,"成虫反復経口",{"$f":"IFERROR(ROUNDDOWN((入力シート!$F$4*0.1*0.4),-INT(LOG10(入力シート!$F$4*0.1*0.4))+1),\"対象外\")","v":"対象外"},{"$f":"IF(H8=\"対象外\",\"－\",IF(C6=\"－\",\"－\",IF(H8<J8,\"<\",IF(H8=J8,\"=\",\">\"))))","v":"－"},{"$f":"C6","v":"－"},{"$f":"IF(H8=\"対象外\",\"評価対象外\",IF(C6=\"－\",\"評価対象外\",IF(OR(I8=\">\"),\"予測暴露量が基準値案を超えない。\",\"要精緻化or蜂群試験orリスク管理措置\")))","v":"評価対象外"}]
[null,null,null,null,null,null,"幼虫経口",{"$f":"IFERROR(ROUNDDOWN((入力シート!$G$4*0.1*0.4),-INT(LOG10(入力シート!$G$4*0.1*0.4))+1),\"対象外\")","v":"対象外"},{"$f":"IF(D6=\"－\",\"－\",IF(H9<J9,\"<\",IF(H9=J9,\"=\",\">\")))","v":"－"},{"$f":"D6","v":"－"},{"$f":"IF(D6=\"－\",\"評価対象外\",IF(OR(I9=\">\"),\"予測暴露量が基準値案を超えない。\",\"要精緻化or蜂群試験orリスク管理措置\"))","v":"評価対象外"}]
[]
[]
[]
[null,"精緻化・リスク管理措置実施後の評価結果　※",null,null,null,null,"※スクリーニング評価の結果、蜂群試験、使用制限を選択した場合、影響がないものとして評価結果を出力します。\nただし、ミツバチ部会の評価結果によっては野生ハナバチ類の評価結果も変わる可能性があることに留意してください。"]
[]
[null,"野生ﾊﾅﾊﾞﾁ類最大予測暴露量",null,null,null,null,"精緻化・リスク管理措置実施後の野生ハナバチ類評価案"]
[]
[null,"成虫接触暴露量\n最大値（µg /bee）","成虫経口暴露量\n最大値（µg /bee）","成虫反復経口暴露量\n最大値（µg /bee）","幼虫経口暴露量\n最大値（µg /bee）",null,"基準値案（µg /bee）\n（ｾｲﾖｳﾐﾂﾊﾞﾁ毒性指標×不確実係数1/10×LD10変換係数0.4）",null,null,"野生ﾊﾅﾊﾞﾁ類\n予測暴露量\n（µg/bee）","評価案"]
[null,{"$f":"IF(MAX(精緻化後の評価結果!AD4:INDIRECT(\"精緻化後の評価結果！AD\"&COUNTA(精緻化後の評価結果!AD:AD)+3))=0,\"－\",MAX(精緻化後の評価結果!AD4:INDIRECT(\"精緻化後の評価結果！AD\"&COUNTA(精緻化後の評価結果!AD:AD)+3)))","v":"－"},{"$f":"IF(MAX(精緻化後の評価結果!AE4:INDIRECT(\"精緻化後の評価結果！AE\"&COUNTA(精緻化後の評価結果!AE:AE)+3))=0,\"－\",MAX(精緻化後の評価結果!AE4:INDIRECT(\"精緻化後の評価結果！AE\"&COUNTA(精緻化後の評価結果!AE:AE)+3)))","v":"－"},{"$f":"IF(MAX(精緻化後の評価結果!AF4:INDIRECT(\"精緻化後の評価結果！AF\"&COUNTA(精緻化後の評価結果!AF:AF)+3))=0,\"－\",MAX(精緻化後の評価結果!AF4:INDIRECT(\"精緻化後の評価結果！AF\"&COUNTA(精緻化後の評価結果!AF:AF)+3)))","v":"－"},{"$f":"IF(MAX(精緻化後の評価結果!AG4:INDIRECT(\"精緻化後の評価結果！AG\"&COUNTA(精緻化後の評価結果!AG:AG)+3))=0,\"－\",MAX(精緻化後の評価結果!AG4:INDIRECT(\"精緻化後の評価結果！AG\"&COUNTA(精緻化後の評価結果!AG:AG)+3)))","v":"－"},null,"成虫単回接触",{"$f":"H6","v":"対象外"},{"$f":"IF(B18=\"－\",\"－\",IF(H18<J18,\"<\",IF(H18=J18,\"=\",\">\")))","v":"－"},{"$f":"B18","v":"－"},{"$f":"IF(B18=\"－\",\"評価対象外\",IF(OR(I18=\">\"),\"予測暴露量が基準値案を超えない。\",\"更なる精緻化or高次試験orリスク管理措置が必要\"))","v":"評価対象外"}]
[null,null,null,null,null,null,"成虫単回経口",{"$f":"H7","v":"対象外"},{"$f":"IF(C18=\"－\",\"－\",IF(H19<J19,\"<\",IF(H19=J19,\"=\",\">\")))","v":"－"},{"$f":"C18","v":"－"},{"$f":"IF(C18=\"－\",\"評価対象外\",IF(OR(I19=\">\"),\"予測暴露量が基準値案を超えない。\",\"更なる精緻化or高次試験orリスク管理措置が必要\"))","v":"評価対象外"}]
[null,null,null,null,null,null,"成虫反復経口",{"$f":"H8","v":"対象外"},{"$f":"IF(H20=\"対象外\",\"－\",IF(D18=\"－\",\"－\",IF(H20<J20,\"<\",IF(H20=J20,\"=\",\">\"))))","v":"－"},{"$f":"D18","v":"－"},{"$f":"IF(H20=\"対象外\",\"評価対象外\",IF(D18=\"－\",\"評価対象外\",IF(OR(I20=\">\"),\"予測暴露量が基準値案を超えない。\",\"更なる精緻化or高次試験orリスク管理措置が必要\")))","v":"評価対象外"}]
[null,null,null,null,null,null,"幼虫経口",{"$f":"H9","v":"対象外"},{"$f":"IF(E18=\"－\",\"－\",IF(H21<J21,\"<\",IF(H21=J21,\"=\",\">\")))","v":"－"},{"$f":"E18","v":"－"},{"$f":"IF(E18=\"－\",\"評価対象外\",IF(OR(I21=\">\"),\"予測暴露量が基準値案を超えない。\",\"更なる精緻化or高次試験orリスク管理措置が必要\"))","v":"評価対象外"}]

{"sheet":"精緻化後の評価結果","index":6,"n_rows":3,"n_cols":37,"rows_kept":3,"cut":false,"hidden":false,"merged":[[0,12,1,26],[0,30,1,32],[0,33,1,36]]}
[null,null,null,null,null,null,null,null,null,null,null,null,"セイヨウミツバチTier1スクリーニング結果",null,null,null,null,null,null,null,null,null,null,null,null,null,null,null,null,null,"野生ハナバチ類暴露量",null,null,"野生ハナバチ類評価案"]
[]
["登録番号","農薬の種類","農薬の名称","一般名\n（該当する有効成分名を記載）","剤型","有効成分含有率（%）","作物名","適用病害虫","使用方法","暴露シナリオ","最小希釈倍数（倍）\n又は\n最大薬量（mL/10a）","最大散布液量（L/10a）\n又は\n最小希釈液量（L/10a）\n又は最大使用量（g/10a）","１０a当たり製剤投下量（g/10a）","ha当たりa.i.投下量（kg a.i./ha)","散布時の濃度（%）","接触リスク評価","経口リスク評価","推定\n花粉・花蜜残留濃度（µg/g）","成虫\n接触暴露量\n（µg/bee）","成虫\n推定経口暴露量\n（µg/bee）","幼虫\n推定\n経口暴露量\n（µg/bee）","成虫\n接触\n暴露量/毒性指標","成虫\n経口\n暴露量/毒性指標","成虫\n経口反復\n暴露量/毒性指標","幼虫\n経口\n暴露量/毒性指標","成虫反復試験の要否","精緻化の要否","実施した措置","普及率\n5%or10%","成虫\n接触暴露量\n（µg/bee）","成虫推定経口暴露量または成虫精緻化経口暴露量（μg/bee）","成虫推定経口暴露量または成虫精緻化反復経口暴露量（μg/bee）","幼虫推定経口暴露量または幼虫精緻化経口暴露量（μg/bee）","成虫\n接触基準値と暴露量の比較","成虫\n単回経口基準値と暴露量の比較","成虫\n反復経口基準値と暴露量の比較","幼虫\n経口基準値と暴露量の比較"]

{"sheet":"蜂群試験を実施する適用","index":7,"n_rows":3,"n_cols":36,"rows_kept":3,"cut":false,"hidden":true,"merged":[[0,12,1,26],[0,29,1,31],[0,32,1,35]]}
[null,null,null,null,null,null,null,null,null,null,null,null,"Tier1スクリーニング結果",null,null,null,null,null,null,null,null,null,null,null,null,null,null,null,null,"野生ハナバチ類暴露量\n（セイヨウミツバチ暴露量×普及率%）",null,null,"野生ハナバチ類評価案"]
[]
["登録番号","農薬の種類","農薬の名称","一般名\n（該当する有効成分名を記載）","剤型","有効成分含有率（%）","作物名","適用病害虫","使用方法","暴露シナリオ","最小希釈倍数（倍）\n又は\n最大薬量（mL/10a）","最大散布液量（L/10a）\n又は\n最小希釈液量（L/10a）\n又は最大使用量（g/10a）","１０a当たり製剤投下量（g/10a）","ha当たりa.i.投下量（kg a.i./ha)","散布時の濃度（%）","接触リスク評価","経口リスク評価","推定\n花粉・花蜜残留濃度（µg/g）","成虫\n接触暴露量\n（µg/bee）","成虫\n推定経口暴露量\n（µg/bee）","幼虫\n推定\n経口暴露量\n（µg/bee）","成虫\n接触\n暴露量/毒性指標","成虫\n経口\n暴露量/毒性指標","成虫\n経口反復\n暴露量/毒性指標","幼虫\n経口\n暴露量/毒性指標","成虫反復試験の要否","精緻化の要否","実施する措置\n※（花粉花蜜残留試験 \nor\n 蜂群試験 \nor\n 使用制限）","普及率\n（%）","野生ハナバチ類成虫\n接触暴露量\n（µg/bee）","野生ハナバチ類成虫\n推定経口暴露量\n（µg/bee）","野生ハナバチ類幼虫\n推定\n経口暴露量\n（µg/bee）","成虫\n接触基準値と暴露量の比較","成虫\n単回経口基準値と暴露量の比較","成虫\n反復経口基準値と暴露量の比較","幼虫\n経口基準値と暴露量の比較"]

{"sheet":"Tier1スクリーニングをクリアする適用","index":8,"n_rows":3,"n_cols":36,"rows_kept":3,"cut":false,"hidden":true,"merged":[[0,12,1,26],[0,29,1,31],[0,32,1,35]]}
[null,null,null,null,null,null,null,null,null,null,null,null,"Tier1スクリーニング結果",null,null,null,null,null,null,null,null,null,null,null,null,null,null,null,null,"野生ハナバチ類暴露量\n（セイヨウミツバチ暴露量×普及率%）",null,null,"野生ハナバチ類評価案"]
[]
["登録番号","農薬の種類","農薬の名称","一般名\n（該当する有効成分名を記載）","剤型","有効成分含有率（%）","作物名","適用病害虫","使用方法","暴露シナリオ","最小希釈倍数（倍）\n又は\n最大薬量（mL/10a）","最大散布液量（L/10a）\n又は\n最小希釈液量（L/10a）\n又は最大使用量（g/10a）","１０a当たり製剤投下量（g/10a）","ha当たりa.i.投下量（kg a.i./ha)","散布時の濃度（%）","接触リスク評価","経口リスク評価","推定\n花粉・花蜜残留濃度（µg/g）","成虫\n接触暴露量\n（µg/bee）","成虫\n推定経口暴露量\n（µg/bee）","幼虫\n推定\n経口暴露量\n（µg/bee）","成虫\n接触\n暴露量/毒性指標","成虫\n経口\n暴露量/毒性指標","成虫\n経口反復\n暴露量/毒性指標","幼虫\n経口\n暴露量/毒性指標","成虫反復試験の要否","精緻化の要否","実施する措置\n※（花粉花蜜残留試験 \nor\n 蜂群試験 \nor\n 使用制限）","普及率\n（%）","野生ハナバチ類成虫\n接触暴露量\n（µg/bee）","野生ハナバチ類成虫\n推定経口暴露量\n（µg/bee）","野生ハナバチ類幼虫\n推定\n経口暴露量\n（µg/bee）","成虫\n接触基準値と暴露量の比較","成虫\n単回経口基準値と暴露量の比較","成虫\n反復経口基準値と暴露量の比較","幼虫\n経口基準値と暴露量の比較"]

{"sheet":"使用制限する適用","index":9,"n_rows":3,"n_cols":36,"rows_kept":3,"cut":false,"hidden":true,"merged":[[0,12,1,26],[0,29,1,31],[0,32,1,35]]}
[null,null,null,null,null,null,null,null,null,null,null,null,"Tier1スクリーニング結果",null,null,null,null,null,null,null,null,null,null,null,null,null,null,null,null,"野生ハナバチ類暴露量\n（セイヨウミツバチ暴露量×普及率%）",null,null,"野生ハナバチ類評価案"]
[]
["登録番号","農薬の種類","農薬の名称","一般名\n（該当する有効成分名を記載）","剤型","有効成分含有率（%）","作物名","適用病害虫","使用方法","暴露シナリオ","最小希釈倍数（倍）\n又は\n最大薬量（mL/10a）","最大散布液量（L/10a）\n又は\n最小希釈液量（L/10a）\n又は最大使用量（g/10a）","１０a当たり製剤投下量（g/10a）","ha当たりa.i.投下量（kg a.i./ha)","散布時の濃度（%）","接触リスク評価","経口リスク評価","推定\n花粉・花蜜残留濃度（µg/g）","成虫\n接触暴露量\n（µg/bee）","成虫\n推定経口暴露量\n（µg/bee）","幼虫\n推定\n経口暴露量\n（µg/bee）","成虫\n接触\n暴露量/毒性指標","成虫\n経口\n暴露量/毒性指標","成虫\n経口反復\n暴露量/毒性指標","幼虫\n経口\n暴露量/毒性指標","成虫反復試験の要否","精緻化の要否","実施する措置\n※（花粉花蜜残留試験 \nor\n 蜂群試験 \nor\n 使用制限）","普及率\n（%）","野生ハナバチ類成虫\n接触暴露量\n（µg/bee）","野生ハナバチ類成虫\n推定経口暴露量\n（µg/bee）","野生ハナバチ類幼虫\n推定\n経口暴露量\n（µg/bee）","成虫\n接触基準値と暴露量の比較","成虫\n単回経口基準値と暴露量の比較","成虫\n反復経口基準値と暴露量の比較","幼虫\n経口基準値と暴露量の比較"]

{"sheet":"ドシエ様式整理用1","index":10,"n_rows":4,"n_cols":19,"rows_kept":4,"cut":false,"hidden":true,"merged":[[0,1,2,1],[0,0,2,0],[0,5,2,5],[0,10,2,10],[0,7,2,7],[0,2,2,2],[0,9,2,9],[0,6,2,6],[0,8,2,8],[0,3,2,3],[0,4,2,4],[0,11,0,13],[1,12,1,13],[1,11,2,11],[1,14,2,14],[1,15,1,17],[0,14,0,17]]}
["登録番号","作物名","適用病害虫","最小希釈倍率（倍）","最大使用液量\n（L/10a）","使用方法","暴露シナリオ","適用作物の花粉・花蜜の有無\n（P：花粉,N：花蜜）","ha当たりの有効成分投下量\n（kg a.i./ha）","散布液/粉中有効成分濃度（％）","推定花粉・花蜜濃度\n（µg/g）","野生ハナバチ類予測暴露量\n（µg/bee）",null,null,"野生ハナバチ類毒性値\n（LD10〔μg/bee〕*）\n*成虫／反復の場合\nLDD10〔μg/bee/day〕"]
[null,null,null,null,null,null,null,null,null,null,null,"接触","経口",null,"接触","経口"]
[null,null,null,null,null,null,null,null,null,null,null,null,"成虫","幼虫",null,"（成虫/単回）","（成虫/反復）","（幼虫）"]
[{"$f":"入力シート!A8","v":0},{"$f":"入力シート!G8","v":0},{"$f":"入力シート!H8","v":0},{"$f":"IF(入力シート!$J8<>\"\",入力シート!$J8,IF(入力シート!$L8<>\"\",入力シート!$L8,\"‐\"))","v":"‐"},{"$f":"IF(入力シート!$K8<>\"\",入力シート!$K8,IF(入力シート!$M8<>\"\",入力シート!$M8,入力シート!$N8))","v":0},{"$f":"入力シート!I8","v":0},{"$f":"入力シート!O8","v":0},{"$f":"IF(入力シート!P8=\"×\",\"P\",\"PN\")","v":"PN"},{"$f":"計算結果!N4","v":0},{"$f":"計算結果!O4","v":0},{"$f":"計算結果!R4","v":"－"},{"$f":"計算結果!$AD4","v":"－"},{"$f":"計算結果!$AE4","v":"－"},{"$f":"計算結果!$AF4","v":"－"},{"$f":"野生ハナバチ類評価結果まとめ!$H$6","v":"対象外"},{"$f":"野生ハナバチ類評価結果まとめ!$H$7","v":"対象外"},{"$f":"野生ハナバチ類評価結果まとめ!$H$8","v":"対象外"},{"$f":"野生ハナバチ類評価結果まとめ!$H$9","v":"対象外"},{"$f":"IF(計算結果!AB4<>\"\",計算結果!AB4,\"\")","v":""}]

{"sheet":"ドシエ様式整理用2","index":11,"n_rows":4,"n_cols":21,"rows_kept":4,"cut":false,"hidden":true,"merged":[[0,17,0,20],[1,13,2,13],[1,14,1,16],[1,17,2,17],[1,18,1,20],[0,13,0,16],[0,9,0,12],[1,9,1,10],[1,11,1,12],[0,6,2,6],[0,7,2,7],[0,8,2,8],[0,5,2,5],[0,0,2,0],[0,1,2,1],[0,2,2,2],[0,3,2,3],[0,4,2,4]]}
["登録番号","作物名","適用病害虫","最小希釈倍率（倍）","最大使用液量\n（L/10a）","使用方法","暴露シナリオ","ha当たりの有効成分投下量\n（kg a.i./ha）","散布液/粉中有効成分濃度（％）","実測花粉・花蜜濃度",null,null,null,"推定暴露量\n（µg/bee）",null,null,null,"推定暴露量/毒性指標"]
[null,null,null,null,null,null,null,null,null,"最大値",null,"平均値",null,"接触","経口",null,null,"接触","経口"]
[null,null,null,null,null,null,null,null,null,"花粉","花蜜","花粉","花蜜",null,"（成虫/単回）","（成虫/反復）","幼虫",null,"（成虫/単回）","（成虫/反復）","（幼虫）"]
[{"$f":"精緻化計算結果!#REF!","v":{"$error":"#REF!"}},{"$f":"精緻化計算結果!#REF!","v":{"$error":"#REF!"}},{"$f":"精緻化計算結果!#REF!","v":{"$error":"#REF!"}},{"$f":"精緻化計算結果!#REF!","v":{"$error":"#REF!"}},{"$f":"精緻化計算結果!#REF!","v":{"$error":"#REF!"}},{"$f":"精緻化計算結果!#REF!","v":{"$error":"#REF!"}},{"$f":"精緻化計算結果!#REF!","v":{"$error":"#REF!"}},{"$f":"精緻化計算結果!#REF!","v":{"$error":"#REF!"}},{"$f":"精緻化計算結果!#REF!","v":{"$error":"#REF!"}},{"$f":"精緻化計算結果!#REF!","v":{"$error":"#REF!"}},{"$f":"精緻化計算結果!#REF!","v":{"$error":"#REF!"}},{"$f":"精緻化計算結果!#REF!","v":{"$error":"#REF!"}},{"$f":"精緻化計算結果!#REF!","v":{"$error":"#REF!"}},{"$f":"精緻化計算結果!#REF!","v":{"$error":"#REF!"}},{"$f":"精緻化計算結果!#REF!","v":{"$error":"#REF!"}},{"$f":"精緻化計算結果!#REF!","v":{"$error":"#REF!"}},{"$f":"精緻化計算結果!#REF!","v":{"$error":"#REF!"}},{"$f":"野生ハナバチ類評価結果まとめ!$H$6","v":"対象外"},{"$f":"野生ハナバチ類評価結果まとめ!$H$7","v":"対象外"},{"$f":"野生ハナバチ類評価結果まとめ!$H$8","v":"対象外"},{"$f":"野生ハナバチ類評価結果まとめ!$H$9","v":"対象外"}]

{"sheet":"蜂個体を用いた影響評価（推計スクリーニング段階）","index":12,"n_rows":4,"n_cols":21,"rows_kept":4,"cut":false,"hidden":false,"merged":[[0,10,2,10],[1,11,2,11],[0,5,2,5],[0,6,2,6],[0,7,2,7],[0,8,2,8],[0,9,2,9],[0,0,2,0],[0,1,2,1],[0,2,2,2],[0,3,2,3],[0,4,2,4],[1,14,2,14],[0,14,0,17],[1,12,1,13],[1,15,1,17],[0,11,0,13]]}
["登録番号","作物名","適用病害虫","最小希釈倍率（倍）","最大使用液量\n（L/10a）","使用方法","暴露シナリオ","適用作物の花粉・花蜜の有無\n（P：花粉,N：花蜜）","ha当たりの有効成分投下量\n（kg a.i./ha）","散布液/粉中有効成分濃度（％）","推定花粉・花蜜濃度\n（µg/g）","野生ハナバチ類予測暴露量\n（µg/bee）",null,null,"野生ハナバチ類毒性値\n（LD10〔μg/bee〕*）\n*成虫／反復の場合\nLDD10〔μg/bee/day〕"]
[null,null,null,null,null,null,null,null,null,null,null,"接触","経口",null,"接触","経口"]
[null,null,null,null,null,null,null,null,null,null,null,null,"成虫","幼虫",null,"（成虫/単回）","（成虫/反復）","（幼虫）"]
[" "," "," "," "," "," "," "," "," "," "," "," "," "," "," "," "," "," "," "," "," "]

{"sheet":"蜂個体を用いた影響評価（花粉花蜜残留試験実測値による精緻化）","index":13,"n_rows":4,"n_cols":21,"rows_kept":4,"cut":false,"hidden":false,"merged":[[1,18,1,20],[0,9,0,12],[0,13,0,16],[0,17,0,20],[1,9,1,10],[1,11,1,12],[1,14,1,16]]}
[null,null,null,null,null,null,null,null,null,"実測花粉・花蜜濃度\n（µg/g）",null,null,null,"野生ハナバチ類予測暴露量\n（µg/bee）",null,null,null,"野生ハナバチ類毒性値\n（LD10〔μg/bee〕*）\n*成虫／反復の場合\nLDD10〔μg/bee/day〕"]
[null,null,null,null,null,null,null,null,null,"最大値",null,"平均値",null,null,"経口",null,null,null,"経口"]
["登録番号","作物名","適用病害虫","最小希釈倍数（倍）","最大使用液量（L/10a）","使用方法","暴露シナリオ","ha当たりの有効成分投下量\n（kg a.i./ha）","散布液/粉中有効成分濃度（％）","花粉","花蜜","花粉","花蜜","接触","（成虫/単回）","（成虫/反復）","幼虫","接触","（成虫/単回）","（成虫/反復）","（幼虫）"]
[" "," "," "," "," "," "," "," "," "," "," "," "," "," "," "," "," "," "," "," "," "]

{"sheet":"基本パラメータ","index":14,"n_rows":12,"n_cols":3,"rows_kept":12,"cut":false,"hidden":false,"merged":[]}
[null,"成虫","幼虫"]
["花粉の摂餌量（g/day）",9.5999999999999992E-3,3.5999999999999999E-3]
["花蜜の摂餌量（g/day）",0.14000000000000001,0.12]
[]
["単位投下量当たりの花粉花蜜残留量"]
["茎葉散布",98,"µg/g per ha/kg"]
["土壌処理",{"$f":"BeeRex!C17","v":1.6287509124961248},"µg/g"]
["種子処理（ppm）",1,"µg/g"]
[]
[]
[null,"成虫"]
["付着量（nL/bee or µg/bee）",70]

{"sheet":"更新履歴","index":15,"n_rows":5,"n_cols":10,"rows_kept":5,"cut":false,"hidden":false,"merged":[[0,0,1,8],[14,2,14,8],[2,2,2,8],[3,2,3,8],[15,2,15,8],[4,2,4,8],[5,2,5,8],[6,2,6,8],[7,2,7,8],[13,2,13,8],[12,2,12,8],[8,2,8,8],[9,2,9,8],[10,2,10,8],[11,2,11,8],[16,2,16,8],[17,2,17,8],[18,2,18,8],[28,2,28,8],[29,2,29,8],[20,2,20,8],[21,2,21,8],[22,2,22,8],[23,2,23,8],[24,2,24,8],[25,2,25,8],[27,2,27,8],[26,2,26,8],[19,2,19,8]]}
["更新履歴",null,null,null,null,null,null,null,null,"Ver.1.0.1"]
[]
["日付","変更したシート等","内容"]
[44756,null,"ver.1.0.0を環境省ホームページ公開"]
[44881,"精緻化後の評価結果","精緻化が必要な適用のみの場合、最下段のAF列にセルが挿入されズレが生じるエラーがあったため、VBAを修正。Ver.1.0.1に修正"]

{"sheet":"BeeRex","index":16,"n_rows":17,"n_cols":5,"rows_kept":17,"cut":false,"hidden":false,"merged":[]}
[]
[null,"Table 1. User inputs (related to exposure)",null,null,"lb a.i./A"]
[null,"Description","Value",null,"kg a.i./ha"]
[null,"Application rate",1,null,"mg a.i./tree"]
[null,"Units of app rate","kg a.i./ha",null,"yes"]
[null,"Application method","soil application",null,"no"]
[null,"Log Pow",{"$f":"入力シート!I3","v":0},{"$f":"IF(C7>5, \"Model should not be run when Log Kow is >5\", \" \")","v":" "}]
[null,"Koc",{"$f":"入力シート!J3","v":0}]
[null,"Mass of tree vegetation (kg-wet weight)",0.1]
[null,"Are empirical residue data available?","no"]
[null,"Empirical residue in pollen/bread (mg a.i./kg)",1,{"$f":"C11/1000","v":1E-3}]
[null,"Empirical residue in nectar (mg a.i./kg)",0.4,{"$f":"C12/1000","v":4.0000000000000002E-4}]
[null,"Empirical residue in jelly (mg a.i./kg)",0.5,{"$f":"C13/1000","v":5.0000000000000001E-4}]
[]
[null,"Table 3. Estimated concentrations in pollen and nectar"]
[null,"Application method","EECs (mg a.i./kg)","EECs (µg a.i./mg)"]
[null,"soil application",{"$f":"IF(C6=\"soil application\", (10^(0.95*C7-2.05)+0.82)*(-0.0648*(C7^2)+0.2431*C7+0.5822)*(1.5/(0.2+1.5*C8*0.01))*IF(C5=\"lb a.i./A\", 0.5*C4, 0.45*C4), \"NA\")","v":1.6287509124961248},{"$f":"IF(C6=\"soil application\", C17/1000, \"NA\")","v":1.6287509124961249E-3}]